[Event "GRENKE Chess Classic-TB 2024"]
[Site "Karlsruhe"]
[Date "2024.03.31"]
[Round "1.1"]
[White "Ding, Liren"]
[Black "Keymer, Vincent"]
[Result "1/2-1/2"]
[ECO "E21"]
[WhiteElo "2762"]
[BlackElo "2738"]
[Annotator "TA"]
[PlyCount "63"]
[EventDate "2024.03.26"]
[EventType "match"]
[EventCountry "GER"]
[SourceTitle "playchess.com"]
[Source "ChessBase"]
[SourceQuality "1"]
[TimeControl "600+2"]

{[%evp 9,63,19,26,21,38,11,17,0,16,16,29,25,33,17,32,19,11,21,12,21,20,25,25,22,39,9,14,0,12,18,14,9,48,54,50,56,33,54,100,91,92,97,96,89,88,81,97,0,0,0,0,0,0,0,0,0]} 1. d4 {[%emt 0:00:01]} Nf6 {[%emt 0:00:01]} 2. c4 {[%emt 0:00:01]} e6 {[%emt 0:00:01][%cal Be7e6,Be6e5,Be5e4][%mdl 32]} 3. Nc3 {[%emt 0:00:01]} Bb4 {[%emt 0:00:01]} 4. Nf3 {[%emt 0:00:01]} d6 {[%emt 0:00:01]} 5. Qc2 {[%emt 0:00:03]} O-O {[%emt 0:00:03][%cal Oe6e5]} 6. e3 {[%emt 0:00:01]} e5 {[%emt 0:00:25]} 7. Bd2 {[%emt 0:00:01]} Re8 {[%emt 0:00:22]} 8. Be2 {[%emt 0:00:01]} a5 {[%emt 0:00:23]} 9. a3 {[%emt 0:00:11]} Bxc3 {[%emt 0:00:02]} 10. Bxc3 {[%emt 0:00:02]} e4 {[%emt 0:00:02]} 11. Nd2 {[%emt 0:00:01]} d5 {[%emt 0:00:00]} 12. O-O {[%emt 0:00:16]} Bg4 {[%emt 0:00:26]} 13. Bxg4 {[%emt 0:00:04]} Nxg4 {[%emt 0:00:01]} 14. h3 {[%emt 0:00:20]} Nf6 {[%emt 0:00:02]} 15. Rfc1 {[%emt 0:00:01]} Nc6 {[%emt 0:00:29]} 16. b4 {[%emt 0:00:05]} axb4 {[%emt 0:01:42]} 17. axb4 {[%emt 0:00:03]} Rxa1 {[%emt 0:00:06]} 18. Rxa1 {[%emt 0:00:01]} dxc4 {[%emt 0:00:10] [#] Und ...b5 würde nun gewinnen.} 19. Nxc4 {[%emt 0:00:10]} Qd5 {[%emt 0:00:54]} 20. Ne5 {[%emt 0:00:07]} Nxe5 {[%emt 0:02:09]} 21. dxe5 {[%emt 0:00:02]} Nd7 {[%emt 0:00:01]} 22. Bd4 {[%emt 0:00:13]} c6 {[%emt 0:00:59]} 23. Ra7 {[%emt 0:01:56]} b5 {[%emt 0:01:12]} (23... h5 $14 {ist eher angebracht.}) 24. Rc7 $16 {[%emt 0:00:08] Schwarz hat schwache schwarze Felder} Nxe5 {[%emt 0:00:01]} 25. Bxe5 {[%emt 0:00:02]} Qxe5 {[%emt 0:00:01]} 26. Qxc6 {[%emt 0:00:13][%mdl 4096] Endspiel. KQR-KQR} g6 {[%emt 0:00:45]} 27. Rb7 {[%emt 0:00:14] Weiß steht aktiver.} Rd8 {[%emt 0:00:05] [#]} 28. Rd7 {[%emt 0:00:15]} (28. Rxb5 $2 Rd1#) (28. g4 $1 $16) 28... Qa1+ {[%emt 0:00:17] Die Stellung ist ausgeglichen.} 29. Kh2 {[%emt 0:00:01]} Qe5+ {[%emt 0:00:01]} 30. Kg1 {[%emt 0:00:05]} Qa1+ {[%emt 0:00:01]} 31. Kh2 {[%emt 0:00:00]} Qe5+ {[%emt 0:00:01]} 32. Kg1 {[%emt 0:00:06] Gewichteter Fehlerwert: Weiß=0.10 (sehr präzise) /Schwarz=0.05 (makellos) .  Fehler:       	Weiß=1     	Schwarz=1     Ungenau:       	Weiß=2     	Schwarz=1     OK:         	Weiß=10    	Schwarz=13    Bester:       	Weiß=3     	Schwarz=2} 1/2-1/2

[Event "GRENKE Chess Classic-TB 2024"]
[Site "Karlsruhe"]
[Date "2024.03.31"]
[Round "1.2"]
[White "Fridman, Daniel"]
[Black "Ding, Liren"]
[Result "1-0"]
[ECO "A08"]
[WhiteElo "2590"]
[BlackElo "2762"]
[Annotator "TA"]
[PlyCount "67"]
[EventDate "2024.03.26"]
[EventType "match"]
[EventCountry "GER"]
[SourceTitle "playchess.com"]
[Source "ChessBase"]
[SourceQuality "1"]
[TimeControl "600+2"]

{[%evp 10,67,13,11,14,13,28,11,18,23,20,18,10,15,25,17,31,14,9,0,0,0,0,0,0,0,0,0,2,0,0,2,41,0,2,0,0,0,0,12,0,-13,0,-14,0,0,56,73,68,0,62,77,237,254,229,227,291,280,279,279]} 1. Nf3 {[%emt 0:00:03]} d5 {[%emt 0:00:01]} 2. g3 {[%emt 0:00:01]} c5 {[%emt 0:00:34]} 3. Bg2 {[%emt 0:00:03]} Nf6 {[%emt 0:00:05]} 4. O-O {[%emt 0:00:03]} e6 {[%emt 0:00:01]} 5. c4 {[%emt 0:00:43]} d4 {[%emt 0:00:01]} 6. e3 {[%emt 0:00:01]} Nc6 {[%emt 0:00:01]} 7. d3 {[%emt 0:00:01]} Bd6 {[%emt 0:00:00]} 8. exd4 {[%emt 0:00:02]} cxd4 {[%emt 0:00:01] The position is equal.} 9. Bg5 {[%emt 0:00:02]} h6 {[%emt 0:00:01]} 10. Bxf6 {[%emt 0:00:02]} Qxf6 {[%emt 0:00:01]} 11. Nbd2 {[%emt 0:00:02]} Qe7 {[%emt 0:00:01]} 12. a3 {[%emt 0:00:05]} a5 {[%emt 0:00:01]} 13. Ne4 {[%emt 0:00:11]} Bc7 {[%emt 0:00:01]} 14. c5 {[%emt 0:00:28][%cal Ob2b4]} O-O {[%emt 0:00:03]} 15. Nfd2 {[%emt 0:00:39]} f5 {[%emt 0:00:18]} 16. Nd6 {[%emt 0:00:01]} Bxd6 {[%emt 0:00:01]} 17. cxd6 {[%emt 0:00:02]} Qxd6 {[%emt 0:00:00]} 18. Nc4 {[%emt 0:00:13]} Qd8 {[%emt 0:00:40]} 19. Rc1 {[%emt 0:00:19]} Ra6 {[%emt 0:00:00]} 20. Qb3 {[%emt 0:01:18]} Kh8 {[%emt 0:00:56]} 21. Rfe1 {[%emt 0:00:03][%mdl 1024] White has compensation.} f4 {[%emt 0:00:02]} 22. Qb5 {[%emt 0:00:53]} Rf5 {[%emt 0:00:07]} 23. Qb3 {[%emt 0:00:42]} (23. Ne5 Rb6 24. Nxc6 bxc6 $17) 23... f3 {[%emt 0:01:36]} 24. Bh3 {[%emt 0:00:02]} Rf6 {[%emt 0:00:05]} 25. Ne5 {[%emt 0:00:12]} Qd6 {[%emt 0:00:05]} 26. Nxc6 {[%emt 0:00:26]} Rxc6 {[%emt 0:00:02]} 27. Qb5 {[%emt 0:00:12] Wards off b6} Qc7 {[%emt 0:01:41]} (27... Bd7 $11 28. Qxb7 Rb6) 28. Rxc6 $14 {[%emt 0:00:26]} bxc6 {[%emt 0:00:01]} 29. Qh5 {[%emt 0:01:22]} (29. Qc5 $14) 29... c5 {[%emt 0:00:28]} (29... g5 $11) 30. Rc1 {[%emt 0:00:13]} Ba6 $2 {[%emt 0:00:11] [#] A mistake that costs the game.} (30... Bd7 $16) 31. Qe8+ $1 $18 {[%emt 0:00:14]} (31. Qxc5 $2 {is the wrong capture.} Qxc5 32. Rxc5 Bxd3 33. Rxa5 Be2 34. Ra8+ Kh7 $19) ({Less strong is} 31. Rxc5 Qd7 $14) 31... Kh7 {[%emt 0:00:00]} 32. Bxe6 {[%emt 0:00:01]} Rxe6 {[%emt 0:00:01]} 33. Qxe6 {[%emt 0:00:02]} Bxd3 {[%emt 0:00:01]} 34. Qd5 $1 {[%emt 0:00:08][%csl LRc5,LRf3] Weighted Error Value: White=0.07 (flawless) /Black=0.26 (precise) .  Mistake:       	White=1     	Black=3      Inaccurate:     	White=1     	Black=1      OK:         	White=13    	Black=8      Best:        	White=2     	Black=3      Strong:       	White=1     	---} 1-0

[Event "GRENKE Chess Classic-TB 2024"]
[Site "Karlsruhe"]
[Date "2024.03.31"]
[Round "1.3"]
[White "Keymer, Vincent"]
[Black "Fridman, Daniel"]
[Result "1-0"]
[ECO "A13"]
[WhiteElo "2738"]
[BlackElo "2590"]
[Annotator "TA"]
[PlyCount "63"]
[EventDate "2024.03.26"]
[EventType "match"]
[EventCountry "GER"]
[SourceTitle "playchess.com"]
[Source "ChessBase"]
[SourceQuality "1"]
[TimeControl "600+2"]

{[%evp 12,63,0,0,6,16,9,13,25,16,24,21,32,31,43,48,34,36,31,24,40,44,71,79,80,75,83,80,82,53,131,54,110,22,63,75,162,140,174,172,160,158,283,162,166,164,490,506,600,610,558,577,594,588]} 1. c4 {[%emt 0:00:02]} e6 {[%emt 0:00:01]} 2. Nf3 {[%emt 0:00:09]} d5 {[%emt 0:00:02]} 3. e3 {[%emt 0:00:00]} Nf6 {[%emt 0:00:01]} 4. b3 {[%emt 0:00:06]} Bd6 {[%emt 0:00:03]} 5. Bb2 {[%emt 0:00:04]} O-O {[%emt 0:00:02]} 6. Nc3 {[%emt 0:00:03]} c6 {[%emt 0:00:02]} 7. Be2 {[%emt 0:00:02]} e5 {[%emt 0:00:25]} 8. cxd5 {[%emt 0:00:02]} cxd5 {[%emt 0:00:02]} 9. Nb5 {[%emt 0:00:00][%cal Ob5d6] And now Nxd6! would win.} Nc6 {[%emt 0:00:01] The position is equal.} 10. Nxd6 {[%emt 0:00:04]} Qxd6 11. d4 {[%emt 0:00:06][%cal Rd4e5]} Qb4+ {[%emt 0:00:03]} 12. Qd2 {[%emt 0:00:18]} Qxd2+ {[%emt 0:00:02]} 13. Kxd2 {[%emt 0:00:46]} Ne4+ {[%emt 0:00:01][%cal Bf6e4,Be4g5,Bg5e6][%mdl 32]} 14. Ke1 {[%emt 0:00:01]} f6 {[%emt 0:00:01]} 15. Rc1 {[%emt 0:01:44]} Bg4 {[%emt 0:00:20]} 16. h3 {[%emt 0:00:58][%cal Bh2h3,Bh3h4][%mdl 32]} Bxf3 {[%emt 0:00:21]} 17. gxf3 {[%emt 0:00:03]} Ng5 {[%emt 0:00:01]} 18. h4 {[%emt 0:00:32]} Ne6 {[%emt 0:00:09]} 19. dxe5 {[%emt 0:00:02]} fxe5 {[%emt 0:00:03]} 20. Kf1 {[%emt 0:00:21]} Rf6 {[%emt 0:01:13]} ({Black should try} 20... Rad8 $14) 21. Rh3 {[%emt 0:00:36]} (21. f4 $16) 21... Raf8 {[%emt 0:00:06]} (21... d4 $14) 22. Kg2 {[%emt 0:00:13]} (22. f4 $16) 22... Rg6+ {[%emt 0:00:19]} 23. Rg3 {[%emt 0:00:04]} Rxg3+ {[%emt 0:00:53]} (23... Rh6 $16 {was called for.}) 24. fxg3 $18 {[%emt 0:00:08]} Kf7 {[%emt 0:02:19]} 25. Bb5 {[%emt 0:00:14]} Ned8 {[%emt 0:00:02]} 26. Rd1 {[%emt 0:00:21] White is more active.} Ke6 {[%emt 0:00:14]} (26... a6 $16 {is a better defense.}) 27. f4 {[%emt 0:00:01]} (27. Ba3 $142 Rf7 28. Rxd5) 27... g6 {[%emt 0:00:14]} 28. e4 {[%emt 0:01:03]} dxe4 {[%emt 0:02:18]} (28... d4 {is more resistant.} 29. Bc4+ Kd7) 29. Bc4+ {[%emt 0:00:00] A strong pair of Bishops. White is clearly winning.} Kf5 {[%emt 0:00:02]} 30. Rf1 {[%emt 0:00:07]} Nd4 {[%emt 0:00:22]} 31. fxe5+ {[%emt 0:00:04]} Nf3 {[%emt 0:00:01] [#]} 32. Bd3 $1 {[%emt 0:01:20][%mdl 512] Weighted Error Value: White=0.16 (very precise) /Black=0.43.  Mistake:       	White=3     	Black=5      Inaccurate:     	White=1     	Black=2      OK:         	White=12    	Black=7      Best:        	White=2     	Black=1      Brilliant:      	White=1     	---} 1-0

[Event "GRENKE Chess Classic-TB 2024"]
[Site "Karlsruhe"]
[Date "2024.03.31"]
[Round "1.4"]
[White "Keymer, Vincent"]
[Black "Ding, Liren"]
[Result "1-0"]
[ECO "A06"]
[WhiteElo "2738"]
[BlackElo "2762"]
[Annotator "TA"]
[PlyCount "73"]
[EventDate "2024.03.26"]
[EventType "match"]
[EventCountry "GER"]
[SourceTitle "playchess.com"]
[Source "ChessBase"]
[SourceQuality "1"]
[TimeControl "600+2"]

{[%evp 9,73,0,0,2,0,0,0,4,1,14,4,0,10,17,32,13,27,0,14,19,32,15,69,67,59,56,55,33,64,69,97,97,89,79,94,0,8,0,0,0,74,74,77,81,100,106,109,91,94,84,77,51,141,140,169,140,162,161,252,255,243,229,217,225,220,214]} 1. Nf3 {[%emt 0:00:02]} d5 {[%emt 0:00:01]} 2. e3 {[%emt 0:00:01]} Nf6 {[%emt 0:00:04]} 3. c4 {[%emt 0:00:01]} e6 {[%emt 0:00:01]} 4. Nc3 {[%emt 0:00:01]} b6 {[%emt 0:00:06]} 5. cxd5 {[%emt 0:00:02]} exd5 {[%emt 0:00:02]} 6. g3 {[%emt 0:00:01]} Bd6 {[%emt 0:00:59]} 7. Bg2 {[%emt 0:00:01]} O-O {[%emt 0:00:02]} 8. O-O {[%emt 0:00:02] The position is equal.} Re8 {[%emt 0:00:02]} 9. Re1 {[%emt 0:00:03]} Nbd7 {[%emt 0:00:34][%cal Bb8d7,Bd7f8,Bf8e6][%mdl 32]} 10. d3 {[%emt 0:00:01][%cal Bd2d3,Bd3d4][%mdl 32]} Bb7 {[%emt 0:00:09]} 11. b3 {[%emt 0:00:03]} c5 {[%emt 0:00:07]} 12. Bb2 {[%emt 0:00:09]} Rc8 {[%emt 0:00:50]} 13. d4 {[%emt 0:00:26]} Nf8 {[%emt 0:00:43]} 14. Re2 {[%emt 0:03:08]} c4 {[%emt 0:00:25]} 15. Nd2 {[%emt 0:00:05]} cxb3 {[%emt 0:00:31]} (15... Qd7 $11) 16. Qxb3 $14 {[%emt 0:00:05][%cal Rc3d5]} Bb8 {[%emt 0:00:06]} 17. Ree1 {[%emt 0:00:18]} Ne6 {[%emt 0:00:03]} 18. a4 {[%emt 0:00:11]} a6 {[%emt 0:00:19]} 19. Rec1 {[%emt 0:00:37] White is more active.} h5 {[%emt 0:00:04]} 20. Nf3 {[%emt 0:00:35]} Ne4 {[%emt 0:00:29]} 21. h4 {[%emt 0:00:09]} Nf6 {[%emt 0:01:22]} 22. Ng5 {[%emt 0:00:24]} ({Better is} 22. Ne2 $16) 22... Rc4 {[%emt 0:00:17]} 23. Nxe6 {[%emt 0:00:34]} Rxe6 {[%emt 0:00:01]} 24. e4 {[%emt 0:00:07]} Rxc3 {[%emt 0:02:23]} 25. Bxc3 $16 {[%emt 0:01:15] Threatens to win with e5.} dxe4 {[%emt 0:00:03] [#]} 26. d5 $1 {[%emt 0:00:26]} Qxd5 {[%emt 0:00:19]} (26... Nxd5 27. Rd1) 27. Qxd5 {[%emt 0:00:11]} Nxd5 {[%emt 0:00:01]} 28. Bd4 {[%emt 0:00:02]} Be5 {[%emt 0:00:25]} 29. Bxe5 {[%emt 0:00:34]} Rxe5 {[%emt 0:00:01]} 30. Rab1 {[%emt 0:00:00]} f5 {[%emt 0:00:15]} (30... a5 $14) 31. Bf1 {[%emt 0:00:10]} e3 {[%emt 0:00:02]} 32. Bc4 {[%emt 0:00:35]} Kh7 {[%emt 0:00:05]} 33. Re1 {[%emt 0:00:12]} Nc3 {[%emt 0:00:09]} (33... a5 $142 34. Bxd5 Rxd5 35. Rxe3 (35. fxe3 Rd2 $11) 35... Rd4) 34. Rxb6 $18 {[%emt 0:00:06]} exf2+ {[%emt 0:00:05]} 35. Kxf2 {[%emt 0:00:01] White is clearly better.} Ne4+ {[%emt 0:00:01]} 36. Kg1 {[%emt 0:00:01]} Rc5 {[%emt 0:00:03]} 37. Bf7 {[%emt 0:00:27] Weighted Error Value: White=0.09 (flawless) /Black=0.20 (precise) .  Mistake:       	White=1     	Black=4      Inaccurate:     	White=2     	Black=2      OK:         	White=9     	Black=4      Best:        	White=1     	Black=4      Brilliant:      	White=1     	---} 1-0

[Event "GRENKE Chess Classic-TB 2024"]
[Site "Karlsruhe"]
[Date "2024.03.31"]
[Round "1.5"]
[White "Ding, Liren"]
[Black "Fridman, Daniel"]
[Result "1-0"]
[ECO "D02"]
[WhiteElo "2762"]
[BlackElo "2590"]
[Annotator "TA"]
[PlyCount "107"]
[EventDate "2024.03.26"]
[EventType "match"]
[EventCountry "GER"]
[SourceTitle "playchess.com"]
[Source "ChessBase"]
[SourceQuality "1"]
[TimeControl "600+2"]

{[%evp 15,107,21,19,0,18,15,20,6,11,14,7,15,10,0,0,-18,-27,-25,0,-8,25,39,75,62,77,63,83,82,106,100,98,74,84,87,109,34,19,-26,-26,-20,-23,-51,-40,-105,-108,-291,128,117,128,110,135,123,169,155,199,179,205,206,232,235,223,214,239,236,335,310,450,454,439,454,509,517,596,468,456,452,447,459,413,392,391,347,325,372,492,473,624,626,581,371,584,518,29984,29985]} 1. Nf3 {[%emt 0:00:01]} d5 {[%emt 0:00:01]} 2. d4 {[%emt 0:00:01]} Nf6 {[%emt 0:00:02]} 3. c4 {[%emt 0:00:01]} e6 {[%emt 0:00:01]} 4. cxd5 {[%emt 0:00:01]} exd5 {[%emt 0:00:01]} 5. Nc3 {[%emt 0:00:01]} c6 {[%emt 0:00:02]} 6. Bf4 {[%emt 0:00:03]} Bd6 {[%emt 0:00:10]} 7. Bxd6 {[%emt 0:00:02]} Qxd6 {[%emt 0:00:02]} 8. e3 {[%emt 0:00:02]} Bf5 {[%emt 0:00:01]} 9. Qb3 {[%emt 0:00:08]} Qc7 {[%emt 0:00:03]} 10. Rc1 {[%emt 0:00:04][%cal Oc3d5]} Qb6 {[%emt 0:00:02]} 11. Qa3 {[%emt 0:00:05] The position is equal.} a5 {[%emt 0:00:14]} 12. Nh4 {[%emt 0:01:12]} Be6 {[%emt 0:00:17]} 13. Bd3 {[%emt 0:00:01]} Qb4 {[%emt 0:00:46]} 14. Bb1 $40 {[%emt 0:00:04][%mdl 128] White is up to no good.} Nbd7 {[%emt 0:00:18]} 15. Qxb4 {[%emt 0:00:01]} axb4 {[%emt 0:00:01]} 16. Ne2 {[%emt 0:00:01]} Nb6 {[%emt 0:00:14]} 17. b3 {[%emt 0:00:04]} Nc8 {[%emt 0:00:02]} 18. Nf4 {[%emt 0:00:11]} g5 {[%emt 0:04:34]} 19. Nxe6 {[%emt 0:00:01]} fxe6 {[%emt 0:00:02]} 20. Nf3 {[%emt 0:00:01][%cal Bh4f3,Bf3e5,Be5d3,Bd3c5][%mdl 32]} Ke7 {[%emt 0:01:03] [#]} 21. Ne5 $1 {[%emt 0:00:14]} Ra6 {[%emt 0:00:08][%cal Ba8a6,Ba6b6,Bb6b5][%mdl 32]} 22. Nd3 {[%emt 0:00:07] White is more active.} Rb6 {[%emt 0:00:01]} 23. Nc5 {[%emt 0:00:06]} Nd6 {[%emt 0:00:02]} 24. Bd3 {[%emt 0:00:03] Wards off Rb5} Nb5 {[%emt 0:00:01]} 25. Bxb5 {[%emt 0:00:01]} (25. f3 $16) 25... Rxb5 $14 {[%emt 0:00:07]} 26. Ke2 {[%emt 0:00:03]} Ra8 {[%emt 0:00:22]} 27. Rc2 {[%emt 0:00:01]} b6 {[%emt 0:00:26]} 28. Na4 {[%emt 0:00:07] [#]} c5 {[%emt 0:00:02][%cal Oc5c4]} 29. dxc5 {[%emt 0:00:06]} (29. f3 $15) (29. h4 g4) 29... bxc5 $17 {[%emt 0:00:01]} 30. Nxc5 $2 {[%emt 0:00:04]} (30. Rhc1 $17 c4 31. Nb2) 30... Kd6 $2 {[%emt 0:00:39]} ({Black should try} 30... Rxc5 $19 31. Rxc5 Rxa2+ 32. Kd3 Ne4) 31. Rhc1 $16 {[%emt 0:00:02]} Ra7 {[%emt 0:00:12]} 32. f3 {[%emt 0:00:17]} h5 {[%emt 0:00:03]} 33. Na4 {[%emt 0:00:25]} Ra6 {[%emt 0:00:13]} (33... Rb8 $16 34. h3 Nd7) 34. Rc8 {[%emt 0:00:10]} g4 {[%emt 0:00:03]} 35. R1c2 {[%emt 0:00:06]} h4 {[%emt 0:00:09]} 36. Nc5 {[%emt 0:00:04]} Ra7 {[%emt 0:00:10]} 37. Nd3 {[%emt 0:00:05]} h3 {[%emt 0:00:13]} 38. gxh3 {[%emt 0:00:25]} gxf3+ {[%emt 0:00:02]} 39. Kxf3 {[%emt 0:00:01]} Ne4 {[%emt 0:00:01]} (39... Rb6 {was worth a try.} 40. Rd8+ Ke7) 40. R2c6+ $18 {[%emt 0:00:06]} Kd7 {[%emt 0:00:14]} (40... Ke7 $142 41. h4 Nd6) 41. Kf4 {[%emt 0:00:16]} Rbb7 {[%emt 0:00:11]} 42. Ne5+ {[%emt 0:00:27]} Ke7 {[%emt 0:00:01]} 43. Rg8 {[%emt 0:00:07]} Nf6 {[%emt 0:00:04]} 44. Rg7+ {[%emt 0:00:05]} Kf8 {[%emt 0:00:01]} 45. Rxb7 {[%emt 0:00:06]} Rxb7 {[%emt 0:00:01]} 46. Rxe6 {[%emt 0:00:02][%mdl 4096] Endgame. KRN-KRN} Ne4 {[%emt 0:00:01]} 47. Kf5 {[%emt 0:00:18]} Ra7 {[%emt 0:00:02]} 48. Nc6 {[%emt 0:00:32]} Rxa2 {[%emt 0:00:01]} 49. Nxb4 {[%emt 0:00:01]} Rxh2 {[%emt 0:00:02]} 50. Nxd5 {[%emt 0:00:01]} Nd2 {[%emt 0:00:04]} 51. b4 {[%emt 0:00:16]} ({Not} 51. Rf6+ Kg7 $16) 51... Rxh3 {[%emt 0:00:01]} 52. e4 {[%emt 0:00:01]} Rh5+ {[%emt 0:00:04]} (52... Rf3+ $142 53. Ke5 Rb3) 53. Kg6 {[%emt 0:00:01]} Rh4 {[%emt 0:00:02]} (53... Rh1 $18 54. Rc6 Rg1+ 55. Kf5 Rf1+ 56. Ke5 Nf3+ 57. Kd6 Ng5 58. Rc8+ Kf7) 54. Nf6 {[%emt 0:00:02] Weighted Error Value: White=0.22 (precise) /Black=0.53.  Loses game:     	White=1     	---        Missed win:     	---       	Black=1      Mistake:       	White=2     	Black=4      Inaccurate:     	White=3     	Black=4      OK:         	White=21    	Black=11     Best:        	White=3     	Black=2      Strong:       	White=1     	---        Brilliant:      	---       	Black=1} 1-0